Cogmind - Beta 11.1 @@@ ROGUE MODE // 2022.07.12 @ 19:41:44 Player: Smie Result: Destroyed by D-63 Destroyer with Heavy Rocket Launcher Performance ------------- Evolutions (5) 2500 Regions Visited (16) 3200 Robots Destroyed (120) 600 Value Destroyed (3601) 3601 Prototype IDs (45) 900 Alien Tech Used (1) 200 Bonus (340) 340 TOTAL SCORE: 11341 Bonus ------- High Alert Combat Kills 33 Follower Combat Kills 7 Met Zhirov 300 Cogmind --------- Core Integrity 0/1000 Matter 192/300 Energy 92/100 System Corruption 22% Temperature Cool (4) Movement Flying (35) Location -4/Proximity Caves Parts ------- > --- POWER (1) -------- (None) > --- PROPULSION (4) --- Cooled Nuclear Pulse Thruster > --- UTILITY (9) ------ Transport Network Coupler Targeting Computer Improved Targeting Computer Improved Targeting Computer Experimental Core Shielding > --- WEAPON (3) ------- (None) > --- INVENTORY (5) ---- Micro Nuclear Core Structural Scanner Transdimensional Reconstructor Power Maul Katana Peak State ------------ > --- POWER ------------ Micro Nuclear Core > --- PROPULSION ------- Improved Treads Armored Treads Armored Treads Medium Treads > --- UTILITY ---------- Advanced Coolant Injector High-capacity Storage Unit Large Battery Structural Scanner Transport Network Coupler Target Analyzer Improved Light Armor Plating Force Field Drone Bay > --- WEAPON ----------- KE Penetrator Molecular Deconstructor > --- INVENTORY -------- Micro Nuclear Core Medium Treads Improved Coolant Injector High-capacity Storage Unit High-capacity Matter Pod Microactuators Layered Medium Armor Plating Improved Thermal Shield Advanced Shield Generator High-powered Shock Rifle Tesla Rifle Improved Arc Projector Shock Bomb Launcher Heavy Shock Bomb Launcher Power Maul Katana Great Axe [Rating: 74] Favorites ----------- Power Light Nuclear Core Engine Cooled Ion Engine Power Core Light Nuclear Core Reactor Fusion Reactor Propulsion Improved Treads Treads Improved Treads Wheel Compact Wheel Flight Unit Cooled Nuclear Pulse Thruster Utility Transport Network Coupler Device Structural Scanner Storage High-capacity Storage Unit Processor Transport Network Coupler Hackware Advanced Hacking Suite Protection Improved Light Armor Plating Weapon Heavy Particle Gun Energy Gun Heavy Particle Gun Ballistic Gun KE Penetrator Ballistic Cannon Heavy Flak Cannon Launcher Shock Bomb Launcher Special Weapon Molecular Deconstructor Impact Weapon Great Maul Slashing Weapon Katana Build | -11 -10 -10 -9 -9 -9 -8 -8 -7 -6 -6 -6 -5 -5 -5 -5 -4 ------- Run | Scr Mat Min Mat Min Exi Min Mat Fac Fac Low Low Fac Upp Upp Zhi Pro Slots Evolved 10 | . . . 2 . . . 2 2 2 . . 2 . . . . Power . | . . . . . . . . . . . . . . . . . Propulsion 2 | . . . . . . . 1 . . . . 1 . . . . Utility 7 | . . . 2 . . . 1 2 1 . . 1 . . . . Weapon 1 | . . . . . . . . . 1 . . . . . . . Parts Attached 192 | 6 8 . 25 . 2 . 25 42 15 8 . 30 18 3 8 2 Power 20 | 1 2 . 4 . . . 2 4 1 1 . 3 1 . 1 . Engine 10 | 1 2 . 4 . . . 1 1 . 1 . . . . . . Core 9 | . . . . . . . 1 3 1 . . 3 1 . . . Reactor 1 | . . . . . . . . . . . . . . . 1 . Propulsion 33 | 2 3 . 6 . . . 7 3 3 . . 4 2 . 3 . Treads 24 | . . . 5 . . . 7 3 3 . . 4 2 . . . Leg . | . . . . . . . . . . . . . . . . . Wheel 6 | 2 3 . 1 . . . . . . . . . . . . . Hover . | . . . . . . . . . . . . . . . . . Flight 3 | . . . . . . . . . . . . . . . 3 . Utility 56 | 1 2 . 4 . . . 5 15 5 2 . 9 4 3 4 2 Device 27 | . . . . . . . 3 9 3 1 . 6 1 1 2 1 Storage 6 | 1 1 . . . . . . 1 . 1 . 2 . . . . Processor 11 | . 1 . 2 . . . 2 2 1 . . . 2 1 . . Hackware 1 | . . . . . . . . . . . . . . . 1 . Protection 11 | . . . 2 . . . . 3 1 . . 1 1 1 1 1 Artifact . | . . . . . . . . . . . . . . . . . Weapon 83 | 2 1 . 11 . 2 . 11 20 6 5 . 14 11 . . . Energy Gun 38 | 2 . . 7 . 2 . 6 12 3 1 . 5 . . . . Energy Cannon . | . . . . . . . . . . . . . . . . . Ballistic Gun 6 | . 1 . . . . . . . . . . 2 3 . . . Ballistic Cannon 1 | . . . . . . . . . . . . . 1 . . . Launcher 13 | . . . . . . . 1 3 2 1 . 4 2 . . . Special Weapon 2 | . . . . . . . . . . 1 . . 1 . . . Impact Weapon 9 | . . . 4 . . . 4 1 . . . . . . . . Slashing Weapon 14 | . . . . . . . . 4 1 2 . 3 4 . . . Piercing Weapon . | . . . . . . . . . . . . . . . . . Special Melee Weapon . | . . . . . . . . . . . . . . . . . Unidentified Prototypes 12 | . . . 3 . 1 . 1 1 . 1 . 1 . . 4 . Corrupted Parts 4 | . . . . . . . . 1 . . . 1 2 . . . System Corruption 24 | . . . . . . . . 4 . . . 3 17 . . . Parts Lost 48 | . 1 . 4 . . . 2 4 5 5 . 5 15 1 . 6 Power 9 | . . . 3 . . . 1 1 . 1 . 1 1 . . 1 Propulsion 11 | . . . . . . . . . 3 . . 1 5 . . 2 Utility 18 | . . . 1 . . . 1 3 1 4 . . 4 1 . 3 Weapon 10 | . 1 . . . . . . . 1 . . 3 5 . . . Highest Loss Streak 8 | . 1 . 2 . . . 1 2 2 5 . 4 8 1 . 6 To Critical Strikes . | . . . . . . . . . . . . . . . . . Average Slot Usage (%) 92 | . 99 100 99 100 100 100 97 99 99 86 73 90 78 26 43 70 Engine 4 | . 14 14 10 11 11 11 7 . 2 2 6 . . . . . Core 2 | . . . . . . . 1 6 3 3 . 4 4 . . . Treads 17 | . . . 10 22 22 22 27 23 19 20 20 23 14 . . . Wheel 3 | . 28 28 10 . . . . . . . . . . . . . Device 6 | . . . . . . . 6 6 6 3 . 14 17 3 2 8 Storage 8 | . 14 14 11 11 11 11 9 7 6 9 13 10 7 . . . Processor 21 | . 13 14 28 22 22 22 19 30 25 20 13 11 13 22 23 23 Protection 6 | . . . 3 11 11 11 9 6 13 9 6 4 3 . 6 8 Energy Gun 10 | . 16 14 17 11 15 22 14 10 14 6 . 7 . . . . Ballistic Gun 2 | . 10 14 2 . . . . . . . . 3 4 . . . Impact Weapon 1 | . . . 1 11 6 . 3 2 . . . . . . . . Slashing Weapon 1 | . . . . . . . . 1 4 4 6 3 4 . . . Naked Turns . | . . . . . . . . . . . . . . . . . Heaviest Build 84 | 14 29 29 38 38 38 37 39 61 71 66 64 84 78 3 18 18 Greatest Support 99 | 20 32 32 40 40 40 40 69 74 74 68 68 99 91 3 18 18 Greatest Overweight (x) 1 | . . . 1 . . . . . 1 . . 1 1 . . . Average Overweight (x) . | . . . . . . . . . . . . . . . . . Largest Inventory Capacity 20 | 8 15 15 15 15 15 15 15 20 20 20 20 20 20 5 5 5 Average Capacity 16 | 7 9 15 15 15 15 15 15 18 20 20 20 20 14 5 5 5 Most Carried 20 | 7 12 13 15 15 15 15 15 20 19 18 14 20 19 5 5 5 Average Carried 14 | 4 8 12 14 15 14 15 14 17 14 14 14 15 12 4 4 5 Final Capacity 20 | 8 15 15 15 15 15 15 15 20 20 20 20 20 5 5 5 5 Final Carried 20 | 7 12 13 15 15 15 15 15 20 14 14 14 20 5 5 5 5 Class Distribution -------------------- 56% | Mutant 36% | Scavenger-Mutant Dominant Class ---------------- Mutant | -10/Materials Mutant | -10/Mines Mutant | -9/Materials Mutant | -9/Mines Mutant | -9/Exiles Mutant | -8/Mines Mutant | -8/Materials Mutant | -7/Factory Scavenger-Mutant | -6/Factory Scavenger-Mutant | -6/Lower Caves Scavenger-Mutant | -6/Lower Caves Scavenger-Mutant | -5/Factory Scavenger-Mutant | -5/Upper Caves Mutant | -5/Upper Caves Mutant | -5/Zhirov Sprinter | -4/Proximity Caves Resources | -11 -10 -10 -9 -9 -9 -8 -8 -7 -6 -6 -6 -5 -5 -5 -5 -4 ----------- Run | Scr Mat Min Mat Min Exi Min Mat Fac Fac Low Low Fac Upp Upp Zhi Pro Matter Collected 2609 | 260 73 242 265 . 60 . 228 420 217 131 . 234 330 149 . . Remotely . | . . . . . . . . . . . . . . . . . Salvage Created 4630 | 100 143 166 1068 . . . 712 1164 338 415 . 337 187 . . . Parts 248 | 2 17 13 50 . . . 36 70 16 14 . 20 10 . . . Haulers Intercepted 9 | . 1 . 3 . . . 4 . . . . 1 . . . . Recyclers Shooed 6 | . 1 . 3 . . . . 1 1 . . . . . . . Parts Field Recycled . | . . . . . . . . . . . . . . . . . Retrieved Matter . | . . . . . . . . . . . . . . . . . Parts Self-Destructed 23 | . . . . . . . . . . 14 . . 9 . . . Prevented 7 | . . . . . . . . . . . . . 4 . . 3 Kills | -11 -10 -10 -9 -9 -9 -8 -8 -7 -6 -6 -6 -5 -5 -5 -5 -4 ------- Run | Scr Mat Min Mat Min Exi Min Mat Fac Fac Low Low Fac Upp Upp Zhi Pro Combat Hostiles Destroyed 86 | . 5 7 14 . . . 11 23 7 10 . 5 4 . . . Melee 5 | . . . 1 . . . . 1 . 2 . . 1 . . . Guns 50 | . 3 7 13 . . . 9 14 3 . . 1 . . . . AOE 25 | . 2 . . . . . 1 7 3 6 . 3 3 . . . Classes Destroyed 15 | 1 4 1 3 . . . 2 2 . . . 1 1 . . . Worker 6 | . . . 2 . . . . 4 . . . . . . . . Builder 9 | . 1 . 1 . . . . 3 . . . 4 . . . . Hauler 9 | . 1 . 3 . . . 4 . . . . 1 . . . . Recycler 6 | 1 . . 4 . . . . . 1 . . . . . . . Operator 1 | . . . . . . . . . . . . 1 . . . . Watcher 3 | . 1 . 1 . . . . . 1 . . . . . . . Swarmer 30 | . 5 5 3 . . . 2 5 6 . . 4 . . . . Grunt 27 | . . 2 7 . . . 5 6 . 7 . . . . . . Brawler 1 | . . . . . . . 1 . . . . . . . . . Duelist 3 | . . . 1 . . . . 1 . 1 . . . . . . Sentry 12 | . . . 3 . . . 2 5 . 1 . 1 . . . . Specialist 3 | . . . . . . . . 2 . 1 . . . . . . Hunter 4 | . . . . . . . 1 1 . . . . 2 . . . Programmer 5 | . . . . . . . . 3 1 . . . 1 . . . Behemoth 1 | . . . . . . . . . . . . . 1 . . . Best Kill Streak 11 | 1 6 4 6 . . . 4 11 4 8 . 4 3 . . . Combat Bots Only 8 | . 3 4 4 . . . 3 8 4 8 . 4 3 . . . Max Kills in Single Turn 5 | 1 2 1 1 . . . 1 4 2 5 . 3 2 . . . Gunslinging . | . . . . . . . . . . . . . . . . . Exploded 5 | . 2 . . . . . 1 3 2 5 . 2 2 . . . Melee 1 | . . . 1 . . . . 1 . 1 . . 1 . . . Uniques/NPCs Destroyed . | . . . . . . . . . . . . . . . . . Combat | -11 -10 -10 -9 -9 -9 -8 -8 -7 -6 -6 -6 -5 -5 -5 -5 -4 -------- Run | Scr Mat Min Mat Min Exi Min Mat Fac Fac Low Low Fac Upp Upp Zhi Pro Damage Taken 8681 | . 150 144 583 . . . 906 1538 559 815 . 1211 1664 374 . 737 Core 1547 | . 28 75 155 . . . 79 129 . 73 . 127 281 343 . 257 Absorbed by Shields 158 | . . . . . . . . . . . . 125 33 . . . Redirected to Shielding 155 | . . . . . . . . . . . . . . . . 155 Regen/Repaired (Parts) 257 | . . . 62 . . . . 18 . . . 177 . . . . Core Remaining (%) 79 | 100 . 58 . . . 61 85 81 . . 91 . . . . . Volleys Fired 249 | 4 20 12 49 . . 1 45 49 20 7 . 26 16 . . . Largest 3 | 2 2 2 2 . . 1 2 2 3 2 . 3 3 . . . Hottest 185 | 90 90 70 110 . . 55 116 130 185 55 . 148 109 . . . Shots Fired 442 | 8 39 24 90 . . 1 68 83 44 11 . 43 31 . . . Gun 404 | 8 39 24 90 . . 1 66 77 38 4 . 37 20 . . . Cannon 7 | . . . . . . . . . . . . . 7 . . . Launcher 24 | . . . . . . . 2 6 6 2 . 5 3 . . . Special 7 | . . . . . . . . . . 5 . 1 1 . . . Kinetic 79 | . 16 12 15 . . . . . . . . 9 27 . . . Thermal 317 | 4 20 12 75 . . 1 66 77 38 4 . 20 . . . . Explosive 8 | . . . . . . . . 3 . 2 . 3 . . . . Electromagnetic 31 | 4 3 . . . . . 2 3 6 . . 10 3 . . . Robot Hit Streak 41 | 4 9 4 13 . . 4 13 41 29 16 . 17 8 . . . Robot Miss Streak 4 | 2 2 2 2 . . . 2 1 1 . . 3 4 . . . Penetration Max . | . . . . . . . . . . . . . . . . . Secondary Targets 3 | . . . . . . . . 2 1 . . . . . . . Max Gunslinging Chain 1 | . . . . . . . . 1 1 . . . . . . . Shots Hit Robots 332 | 5 24 14 63 . . 1 52 82 28 13 . 20 30 . . . Core Hits 187 | 2 12 9 31 . . . 22 51 18 13 . 15 14 . . . Critical Kills . | . . . . . . . . . . . . . . . . . Critical Parts Destroyed 3 | . . . 1 . . . 1 1 . . . . . . . . Critical Strikes 24 | 1 . . 3 . . . 4 9 5 1 . 1 . . . . Burn 21 | 1 . . 2 . . . 3 8 5 1 . 1 . . . . Smash 3 | . . . 1 . . . 1 1 . . . . . . . . Melee Attacks 65 | . . . 7 . . . 7 23 2 6 . 11 9 . . . Impact 27 | . . . 7 . . . 7 13 . . . . . . . . Slashing 38 | . . . . . . . . 10 2 6 . 11 9 . . . Piercing . | . . . . . . . . . . . . . . . . . Sneak Attacks 6 | . . . 1 . . . 1 4 . . . . . . . . Combat Hostiles . | . . . . . . . . . . . . . . . . . Follow-up Attacks . | . . . . . . . . . . . . . . . . . Damage Inflicted 8760 | 65 393 173 1116 . . 21 1196 2265 751 708 . 1056 1016 . . . Guns 5148 | 65 313 173 1056 . . 21 923 1242 562 65 . 461 267 . . . Cannons 236 | . . . . . . . . . . . . . 236 . . . Explosions 2423 | . 80 . . . . . 41 618 189 586 . 595 314 . . . Melee 924 | . . . 58 . . . 219 393 . 57 . . 197 . . . Ramming 29 | . . . 2 . . . 13 12 . . . . 2 . . . Kinetic 958 | . 100 74 138 . . . . . . . . 143 503 . . . Thermal 4641 | 26 257 99 918 . . 21 923 1380 562 65 . 253 137 . . . Explosive 1288 | . . . . . . . . 232 . 586 . 470 . . . . Electromagnetic 920 | 39 36 . . . . . 41 248 189 . . 190 177 . . . Impact 415 | . . . 58 . . . 219 138 . . . . . . . . Slashing 509 | . . . . . . . . 255 . 57 . . 197 . . . Piercing . | . . . . . . . . . . . . . . . . . Highest Corruption 25 | . 1 1 . . . . . 5 1 1 1 6 25 25 22 22 Average Corruption 6 | . 1 1 . . . . . 4 1 1 1 3 15 23 22 22 Corruption Purged 3 | . . . . . . . . . . . . . . 3 . . Corruption Blocked 8 | . . . . . . . . 8 . . . . . . . . Effects 112 | . 3 3 . . . . . 30 1 3 . 13 32 18 4 5 Message Errors 23 | . 1 1 . . . . . 3 . 1 . 5 6 4 . 2 Matter Fused 22 | . 1 . . . . . . 5 . 1 . 2 6 5 1 1 Heat Flow Errors 19 | . . . . . . . . 8 1 . . 1 5 3 1 . Energy Discharges 16 | . . . . . . . . 6 . . . 1 6 1 1 1 Parts Rejected 1 | . . . . . . . . 1 . . . . . . . . Data Loss (minor) 10 | . 1 1 . . . . . 4 . 1 . 1 1 . 1 . Data Loss (major) 4 | . . 1 . . . . . 1 . . . 1 1 . . . Misfires 5 | . . . . . . . . 2 . . . 1 2 . . . Alerts 2 | . . . . . . . . . . . . . 1 1 . . Misdirections 6 | . . . . . . . . . . . . . 1 4 . 1 Weapon Failures 4 | . . . . . . . . . . . . 1 3 . . . Overload Shots . | . . . . . . . . . . . . . . . . . Overflow Damage 300 | . 10 . 58 . . . 43 153 . 16 . . 20 . . . Projectiles . | . . . . . . . . . . . . . . . . . Explosions 78 | . 10 . . . . . . 32 . 16 . . 20 . . . Melee 222 | . . . 58 . . . 43 121 . . . . . . . . Knockbacks 1 | . . . . . . . 1 . . . . . . . . . Impact 1 | . . . . . . . 1 . . . . . . . . . Kinetic . | . . . . . . . . . . . . . . . . . Secondary . | . . . . . . . . . . . . . . . . . Self-Inflicted Damage 192 | . 38 . . . . . . 81 2 65 . . 6 . . . Shots 8 | . 1 . . . . . . 3 1 2 . . 1 . . . Rammed 5 | . . . . . . . 3 1 . . . . 1 . . . Targets Rammed 6 | . . . 1 . . . 3 1 . . . . 1 . . . Kicked . | . . . . . . . . . . . . . . . . . Crushed 1 | . . . 1 . . . . . . . . . . . . . Highest Temperature 401 | 120 60 63 276 . . 8 306 401 239 . . 198 149 213 227 . Average Temperature 73 | 63 20 22 84 . . 6 93 77 54 . . 69 73 100 127 . Received Heat Transfer 1440 | . 6 42 219 . . . 450 252 . 324 . 27 72 39 . 9 Effects 1 | . . . . . . . 1 . . . . . . . . . Energy Bleed 1 | . . . . . . . 1 . . . . . . . . . Siege Activations . | . . . . . . . . . . . . . . . . . Robots Corrupted . | . . . . . . . . . . . . . . . . . Combat Hostiles . | . . . . . . . . . . . . . . . . . Parts Fried 5 | . . . 2 . . . 2 1 . . . . . . . . Impact Corruptions 5 | . . . 1 . . . 2 2 . . . . . . . . Robots Melted 3 | . . . . . . . . 1 1 . . 1 . . . . Combat Hostiles 3 | . . . . . . . . 1 1 . . 1 . . . . Parts Melted 39 | 1 . . 6 . . . 5 16 7 1 . 2 1 . . . Heat Transferred 11145 | 148 668 296 2072 . . 37 2035 3532 1480 222 . 555 100 . . . Parts Sabotaged . | . . . . . . . . . . . . . . . . . Parts Stolen . | . . . . . . . . . . . . . . . . . Parts Stripped . | . . . . . . . . . . . . . . . . . Power Chain Reactions 6 | . 1 . . . . . . 3 1 . . . 1 . . . Missiles Intercepted . | . . . . . . . . . . . . . . . . . Alert | -11 -10 -10 -9 -9 -9 -8 -8 -7 -6 -6 -6 -5 -5 -5 -5 -4 ------- Run | Scr Mat Min Mat Min Exi Min Mat Fac Fac Low Low Fac Upp Upp Zhi Pro Peak Influence 469 | 5 239 206 301 67 . . 197 469 344 . . 152 . . . . Initial 163 | . 3 1 79 67 . . . 89 163 . . 25 . . . . Average 155 | 1 71 40 131 67 . . 120 288 236 . . 37 . . . . Maximum Alert Level 2 | . 1 1 1 . . . . 2 1 . . . . . . . Low Security (%) 70 | 100 93 97 93 100 . 100 100 17 49 . . 100 . . . . Level 1 28 | . 6 2 6 . . . . 76 50 . . . . . . . Level 2 1 | . . . . . . . . 5 . . . . . . . . Level 3 . | . . . . . . . . . . . . . . . . . Level 4 . | . . . . . . . . . . . . . . . . . Level 5 . | . . . . . . . . . . . . . . . . . High Security . | . . . . . . . . . . . . . . . . . Max Security . | . . . . . . . . . . . . . . . . . Squads Dispatched 13 | . . . 1 . . . 1 7 1 . . 3 . . . . Investigation 2 | . . . 1 . . . . 1 . . . . . . . . Extermination 5 | . . . . . . . . 3 1 . . 1 . . . . Reinforcement 4 | . . . . . . . 1 2 . . . 1 . . . . Assault . | . . . . . . . . . . . . . . . . . Garrison 2 | . . . . . . . . 1 . . . 1 . . . . Intercept . | . . . . . . . . . . . . . . . . . Searches Triggered . | . . . . . . . . . . . . . . . . . Construction Impeded 1 | . . . . . . . . . . . . 1 . . . . Haulers Reinforced . | . . . . . . . . . . . . . . . . . Active Scanning Responses . | . . . . . . . . . . . . . . . . . Cargo Convoy Interrupts 1 | . . . . . . . . 1 . . . . . . . . Stealth | -11 -10 -10 -9 -9 -9 -8 -8 -7 -6 -6 -6 -5 -5 -5 -5 -4 --------- Run | Scr Mat Min Mat Min Exi Min Mat Fac Fac Low Low Fac Upp Upp Zhi Pro Distress Signals 9 | . 1 . 2 . . . 3 2 . . . 1 . . . . Communications Jammed . | . . . . . . . . . . . . . . . . . Distress Signals . | . . . . . . . . . . . . . . . . . Times Spotted 171 | . 14 9 23 . . . 18 33 13 12 . 10 6 9 . 24 Peak Tracking Total 11 | . 5 3 4 . . . 5 4 6 9 . 5 3 5 . 11 Tactical Retreats 14 | . 1 2 . . . . . . 1 2 . . . 4 . 4 Traps | -11 -10 -10 -9 -9 -9 -8 -8 -7 -6 -6 -6 -5 -5 -5 -5 -4 ------- Run | Scr Mat Min Mat Min Exi Min Mat Fac Fac Low Low Fac Upp Upp Zhi Pro Traps Triggered 6 | . 3 . 1 . . . . 1 . . . 1 . . . . Indirectly . | . . . . . . . . . . . . . . . . . Trap Hack Attempts . | . . . . . . . . . . . . . . . . . Triggered . | . . . . . . . . . . . . . . . . . Disarmed 11 | . 11 . . . . . . . . . . . . . . . Reprogrammed . | . . . . . . . . . . . . . . . . . Reused . | . . . . . . . . . . . . . . . . . Traps Extracted . | . . . . . . . . . . . . . . . . . Installed . | . . . . . . . . . . . . . . . . . Triggered 3 | . . . . . . . . 2 . . . . . . . 1 Machines | -11 -10 -10 -9 -9 -9 -8 -8 -7 -6 -6 -6 -5 -5 -5 -5 -4 ---------- Run | Scr Mat Min Mat Min Exi Min Mat Fac Fac Low Low Fac Upp Upp Zhi Pro Machines Disabled 4 | . 2 . . . . . . . 1 1 . . . . . . Max in Single Turn 2 | . 2 . . . . . . . 1 1 . . . . . . Garrison Access 2 | . . . . . . . . 2 . . . . . . . . Machines Sabotaged . | . . . . . . . . . . . . . . . . . Garrisons Compromised 1 | . . . . . . . . 1 . . . . . . . . Overloaded Fab Kills . | . . . . . . . . . . . . . . . . . Hacking | -11 -10 -10 -9 -9 -9 -8 -8 -7 -6 -6 -6 -5 -5 -5 -5 -4 --------- Run | Scr Mat Min Mat Min Exi Min Mat Fac Fac Low Low Fac Upp Upp Zhi Pro Machines Accessed 38 | . 7 . 5 . 2 . 2 8 3 . . 7 . . 4 . Terminals 20 | . 6 . 4 . . . 2 3 1 . . 4 . . . . Fabricators 2 | . . . . . . . . 1 . . . 1 . . . . Repair Stations 5 | . 1 . 1 . . . . 2 . . . 1 . . . . Recycling Units 2 | . . . . . . . . . 1 . . 1 . . . . Scanalyzers . | . . . . . . . . . . . . . . . . . Garrison Access 3 | . . . . . . . . 2 1 . . . . . . . Total Hacks 104 | . 29 . 13 . 5 . 4 15 6 . . 15 . . 17 . Successful 62 | . 17 . 6 . 5 . 3 8 1 . . 5 . . 17 . Failed 42 | . 12 . 7 . . . 1 7 5 . . 10 . . . . Catastrophic 12 | . 1 . 1 . . . 1 3 3 . . 3 . . . . Database Lockouts . | . . . . . . . . . . . . . . . . . Manual 25 | . 4 . 1 . 1 . 3 3 2 1 . 10 . . . . Terminals 54 | . 26 . 8 . . . 4 4 2 . . 10 . . . . Fabricators 2 | . . . . . . . . 1 . . . 1 . . . . Repair Stations 17 | . 3 . 5 . . . . 6 . . . 3 . . . . Recycling Units 3 | . . . . . . . . . 2 . . 1 . . . . Scanalyzers . | . . . . . . . . . . . . . . . . . Garrison Access 6 | . . . . . . . . 4 2 . . . . . . . Terminal Hacks 45 | . 16 . 3 . 5 . 2 1 . . . 1 . . 17 . Record 9 | . . . . . 4 . . . . . . . . . 5 . Part Schematic 4 | . . . . . . . . . . . . . . . 4 . Robot Analysis 8 | . 3 . . . . . 1 . . . . . . . 4 . Prototype ID Bank 4 | . . . . . . . . . . . . . . . 4 . Level Access Points 2 | . . . . . . . 1 1 . . . . . . . . Branch Access Points 1 | . . . . . . . . . . . . 1 . . . . Unreport Threat 4 | . 3 . 1 . . . . . . . . . . . . . Locate Traps 4 | . 3 . 1 . . . . . . . . . . . . . Disarm Traps 2 | . 2 . . . . . . . . . . . . . . . Registered Components 1 | . 1 . . . . . . . . . . . . . . . Zone Layout 5 | . 4 . 1 . . . . . . . . . . . . . EX-Prototype ID Bank 1 | . . . . . 1 . . . . . . . . . . . Fabricator Hacks 2 | . . . . . . . . 1 . . . 1 . . . . Network Status 2 | . . . . . . . . 1 . . . 1 . . . . Repair Station Hacks 9 | . 1 . 3 . . . . 3 . . . 2 . . . . Scan Component 6 | . 1 . 2 . . . . 2 . . . 1 . . . . Repair 3 | . . . 1 . . . . 1 . . . 1 . . . . Recycling Unit Hacks 1 | . . . . . . . . . . . . 1 . . . . Retrieve Components 1 | . . . . . . . . . . . . 1 . . . . Scanalyzer . | . . . . . . . . . . . . . . . . . Garrison Access Hacks 2 | . . . . . . . . 2 . . . . . . . . Seal Access 2 | . . . . . . . . 2 . . . . . . . . Unauthorized Hacks 3 | . . . . . . . 1 1 1 . . . . . . . Terminals 3 | . . . . . . . 1 1 1 . . . . . . . Botnet 3 | . . . . . . . 1 1 1 . . . . . . . Fabricators . | . . . . . . . . . . . . . . . . . Repair Stations . | . . . . . . . . . . . . . . . . . Recycling Units . | . . . . . . . . . . . . . . . . . Scanalyzers . | . . . . . . . . . . . . . . . . . Garrison Access . | . . . . . . . . . . . . . . . . . Data Cores Recovered 1 | . . . . . . . . . . . . 1 . . . . Used 1 | . . . . . . . . . . . . 1 . . . . Hacking Detections 23 | . 5 . 5 . . . 1 4 3 . . 5 . . . . Full Trace Events 2 | . 1 . 1 . . . . . . . . . . . . . Feedback Events . | . . . . . . . . . . . . . . . . . Feedback Blocked . | . . . . . . . . . . . . . . . . . Robot Schematics Acquired . | . . . . . . . . . . . . . . . . . Robots Built . | . . . . . . . . . . . . . . . . . Authchips . | . . . . . . . . . . . . . . . . . Time . | . . . . . . . . . . . . . . . . . Total Robot Build Rating . | . . . . . . . . . . . . . . . . . Part Schematics Acquired 4 | . . . . . . . . . . . . . . . 4 . Parts Built . | . . . . . . . . . . . . . . . . . Authchips . | . . . . . . . . . . . . . . . . . Time . | . . . . . . . . . . . . . . . . . Total Part Build Rating . | . . . . . . . . . . . . . . . . . Parts Repaired 3 | . . . 1 . . . . 1 . . . 1 . . . . Time 108 | . . . 26 . . . . 44 . . . 38 . . . . Parts Recycled . | . . . . . . . . . . . . . . . . . Recycled Matter . | . . . . . . . . . . . . . . . . . Retrieved Matter . | . . . . . . . . . . . . . . . . . Retrieved Components 1 | . . . . . . . . . . . . 1 . . . . Parts Scanalyzed . | . . . . . . . . . . . . . . . . . Part Schematics Acquired . | . . . . . . . . . . . . . . . . . Parts Damaged . | . . . . . . . . . . . . . . . . . Bothacking | -11 -10 -10 -9 -9 -9 -8 -8 -7 -6 -6 -6 -5 -5 -5 -5 -4 ------------ Run | Scr Mat Min Mat Min Exi Min Mat Fac Fac Low Low Fac Upp Upp Zhi Pro Used RIF Installer . | . . . . . . . . . . . . . . . . . Robots Hacked . | . . . . . . . . . . . . . . . . . Non-combat . | . . . . . . . . . . . . . . . . . Combat . | . . . . . . . . . . . . . . . . . Robot Hacks Applied . | . . . . . . . . . . . . . . . . . Relay Couplers Released . | . . . . . . . . . . . . . . . . . Fabnet Peak Effective % . | . . . . . . . . . . . . . . . . . Robots Rewired 5 | . . . . . 3 . . . . 2 . . . . . . Allies Hacked 2 | . . . . . . . . . . 2 . . . . . . Hacks Repelled . | . . . . . . . . . . . . . . . . . Allies | -11 -10 -10 -9 -9 -9 -8 -8 -7 -6 -6 -6 -5 -5 -5 -5 -4 -------- Run | Scr Mat Min Mat Min Exi Min Mat Fac Fac Low Low Fac Upp Upp Zhi Pro Total Allies 5 | . . . . . 3 . . . . 2 . . . . . . Largest Group 3 | . . . . . 3 3 3 . . 2 . . . . . . Highest-Rated Group 52 | . . . . . 24 24 24 . . 52 . . . . . . Highest-Rated Ally 32 | . . . . . 8 8 8 . . 32 . . . . . . Total Orders 2 | . . . . . . . . . . . . 2 . . . . EXPLORE 1 | . . . . . . . . . . . . 1 . . . . RETURN 1 | . . . . . . . . . . . . 1 . . . . Ally Attacks 14 | . . . . . . . 6 . . 8 . . . . . . Total Damage 302 | . . . . . . . 35 . . 267 . . . . . . Kills 1 | . . . . . . . 1 . . . . . . . . . Allies Corrupted 1 | . . . . . . . . . . 1 . . . . . . Allies Melted . | . . . . . . . . . . . . . . . . . Intel | -11 -10 -10 -9 -9 -9 -8 -8 -7 -6 -6 -6 -5 -5 -5 -5 -4 ------- Run | Scr Mat Min Mat Min Exi Min Mat Fac Fac Low Low Fac Upp Upp Zhi Pro Robot Analysis Total 8 | . 3 . . . . . 1 . . . . . . . 4 . Derelict Logs Recovered 6 | . . 1 . . . . . . . 2 . . 1 1 . 1 Drone Launches 2 | . . . . . . . . . . . . 2 . . . . Drone Recoveries 2 | . . . . . . . . . . . . 2 . . . . Exploration | -11 -10 -10 -9 -9 -9 -8 -8 -7 -6 -6 -6 -5 -5 -5 -5 -4 ------------- Run | Scr Mat Min Mat Min Exi Min Mat Fac Fac Low Low Fac Upp Upp Zhi Pro Turns Passed 8605 | 68 477 281 994 112 715 73 763 1671 606 650 20 972 751 289 77 86 Spaces Moved 5442 | 51 398 214 583 71 437 45 341 831 305 342 13 461 388 542 146 274 Core 647 | 2 . . . . . . . . . . . . 9 542 94 . Treads 3437 | . . . 212 71 437 45 341 831 305 342 13 461 379 . . . Legs . | . . . . . . . . . . . . . . . . . Wheels 1032 | 49 398 214 371 . . . . . . . . . . . . . Hover . | . . . . . . . . . . . . . . . . . Flight 326 | . . . . . . . . . . . . . . . 52 274 Fastest Speed 29 | 50 80 100 100 160 160 160 160 160 160 166 166 162 50 50 29 29 Average Speed 129 | 78 98 100 123 160 160 160 160 160 169 166 166 163 166 50 42 29 Slowest Speed 250 | 80 100 100 160 160 160 160 160 160 250 166 166 243 240 50 50 32 Overloaded Moves . | . . . . . . . . . . . . . . . . . Propulsion Burnouts . | . . . . . . . . . . . . . . . . . Robots Hopped 2 | . . . . . . . . . . . . . . . . 2 Cave-ins Triggered . | . . . . . . . . . . . . . . . . . Exploration Rate (%) 41 | 3 78 56 53 19 90 20 30 23 10 56 5 23 61 71 62 52 Regions Visited 16 Branch Regions 10 Pre-discovered Areas 5 | . . . . . 1 . . . . . . . . . 3 1 Known Exits Taken 8 | . . . 1 1 1 1 1 1 1 . . 1 . . . . Unknown Exits Taken 8 | 1 1 1 . . . . . . . 1 1 . 1 1 1 . Scrap Searched 7 | . . . . . . 1 . . . . . . 3 3 . . Spaces Dug 40 | . . . 6 . . . 3 15 2 . . 11 3 . . . Terrain Destroyed 105 | . 3 . 6 . . . 3 37 6 6 . 28 16 . . . Melee 39 | . . . 6 . . . 3 15 2 . . 10 3 . . . Projectile 4 | . . . . . . . . . . . . 2 2 . . . AOE 62 | . 3 . . . . . . 22 4 6 . 16 11 . . . Terrain Rammed . | . . . . . . . . . . . . . . . . . Walls Destroyed . | . . . . . . . . . . . . . . . . . Machines Disabled . | . . . . . . . . . . . . . . . . . Actions | -11 -10 -10 -9 -9 -9 -8 -8 -7 -6 -6 -6 -5 -5 -5 -5 -4 --------- Run | Scr Mat Min Mat Min Exi Min Mat Fac Fac Low Low Fac Upp Upp Zhi Pro Total 6440 | 67 444 257 754 70 453 45 485 1047 349 398 12 616 450 559 157 277 Wait 289 | . 5 31 63 . . . 26 61 5 8 . 71 5 11 . 3 Move 5424 | 50 397 213 582 70 436 44 340 831 304 341 12 460 388 541 145 270 Hop 2 | . . . . . . . . . . . . . . . . 2 Pick Up 85 | 7 8 1 14 . 2 . 16 19 1 1 . 12 3 . 1 . Fast Attach 59 | 6 6 . 5 . . . 5 10 1 . . 9 6 3 8 . Attach 47 | . 1 . 8 . 1 . 5 4 9 3 . 7 8 . 1 . Detach 17 | . 1 . 1 . . . . 2 2 2 . 3 3 2 1 . Swap 87 | . 1 . 12 . 1 . 15 28 5 5 . 14 4 . . 2 Drop 76 | . 5 . 12 . 2 . 23 20 . . . 3 8 2 1 . Fire 249 | 4 20 12 49 . . 1 45 49 20 7 . 26 16 . . . Melee 65 | . . . 7 . . . 7 23 2 6 . 11 9 . . . Ram . | . . . . . . . . . . . . . . . . . Kick . | . . . . . . . . . . . . . . . . . Crush 4 | . . . 1 . . . 3 . . . . . . . . . Escape Stasis . | . . . . . . . . . . . . . . . . . Rewire 36 | . . . . . 11 . . . . 25 . . . . . . Trap . | . . . . . . . . . . . . . . . . . Miscellaneous . | . . . . . . . . . . . . . . . . . Route ------- -11/Scrapyard -10/Materials (discovered 4 exits: *Mat x2 / [*Min x2]) -10/Mines -9/Materials (discovered 4 exits: *Mat / *Min / *Sto x2) -9/Mines -9/Exiles -8/Mines -8/Materials (discovered 3 exits: *Fac x3) -7/Factory (discovered 4 exits: *Fac x4) -6/Factory -6/Lower Caves -6/Lower Caves -5/Factory (discovered 3 exits: Fac / *Upp x2) -5/Upper Caves -5/Upper Caves -5/Zhirov -4/Proximity Caves History --------- Turn | Location | Event 24 | -11/Scrapyard | Discovered new exit (range 16) 69 | -11/Scrapyard | Entered Materials 275 | -10/Materials | Discovered new exit (range 14) 315 | -10/Materials | Build established: Mutant 316 | -10/Materials | Discovered new exit (range 9) 373 | -10/Materials | Discovered new exit (range 11) 461 | -10/Materials | Discovered new exit (range 3) 546 | -10/Materials | Entered Mines 824 | -10/Mines | Discovered new exit (range 5) 827 | -10/Mines | Entered Materials 827 | -9/Materials | Evolved 2 slots: Utility x2 828 | -9/Materials | Identified exit to Storage 859 | -9/Materials | Discovered exit to Storage (range 12) 997 | -9/Materials | Discovered new exit (range 12) 1342 | -9/Materials | Discovered new exit (range 17) 1381 | -9/Materials | Repaired Lgt. Treads 1820 | -9/Materials | Identified exit to Mines 1821 | -9/Materials | Entered Mines 1925 | -9/Mines | Deemed a non-threat by the Exiles lab entrance 1925 | -9/Mines | Discovered new exit (range 5) 1930 | -9/Mines | Identified exit to Exiles 1933 | -9/Mines | Entered Exiles 1933 | -9/Exiles | Found Exiles lab destroyed 2155 | -9/Exiles | Opened EX-Vault 2550 | -9/Exiles | Learned location of Zion (-6) 2635 | -9/Exiles | Discovered new exit (range 10) 2646 | -9/Exiles | Identified exit to Mines 2648 | -9/Exiles | Entered Mines 2648 | -8/Mines | Accompanied by 3 allies 2711 | -8/Mines | Discovered new exit (range 7) 2719 | -8/Mines | Identified exit to Materials 2721 | -8/Mines | Entered Materials 2721 | -8/Materials | Accompanied by 3 allies 2721 | -8/Materials | Evolved 2 slots: Propulsion x1, Utility x1 3457 | -8/Materials | Identified exit to Factory 3484 | -8/Materials | Entered Factory 3484 | -7/Factory | Evolved 2 slots: Utility x2 3590 | -7/Factory | Destroyed 8 combat bots 4341 | -7/Factory | Repaired Imp. Cooling System 4810 | -7/Factory | Cargo convoy interrupted 4973 | -7/Factory | Identified exit to Factory 5155 | -7/Factory | Entered another Factory area 5155 | -6/Factory | Evolved 2 slots: Utility x1, Weapon x1 5537 | -6/Factory | Build established: Scavenger-Mutant 5597 | -6/Factory | Spotted B-75 Beast 5743 | -6/Factory | Discovered new exit (range 11) 5759 | -6/Factory | Identified exit to Lower Caves 5761 | -6/Factory | Entered Lower Caves 5809 | -6/Lower Caves | Learned location of 1 exit from Factory 5845 | -6/Lower Caves | Acquired the password to a Derelict Tinkerer's latest research 5857 | -6/Lower Caves | Found Prototype Special Weapon 6025 | -6/Lower Caves | Identified Molecular Deconstructor 6093 | -6/Lower Caves | Attracted the attention of an 0b10 outpost 6142 | -6/Lower Caves | Destroyed 8 combat bots 6168 | -6/Lower Caves | Lost 5 parts (1p4u) 6200 | -6/Lower Caves | Caught by Unaware searching for contraband prototypes 6395 | -6/Lower Caves | Discovered new exit (range 11) 6411 | -6/Lower Caves | Entered another Lower Caves area 6420 | -6/Lower Caves | Discovered new exit (range 7) 6431 | -6/Lower Caves | Entered Factory 6431 | -5/Factory | Evolved 2 slots: Propulsion x1, Utility x1 6432 | -5/Factory | Identified exit to Factory 6487 | -5/Factory | Repaired Imp. Light Armor Plating 7208 | -5/Factory | Identified exit to Upper Caves 7360 | -5/Factory | Garrison activated, responded to threat 7403 | -5/Factory | Entered Upper Caves 7433 | -5/Upper Caves | Lost 4 parts (1p1n2w) 7781 | -5/Upper Caves | System corruption reached 10% 7791 | -5/Upper Caves | Lost 8 parts (3n3u2w) 7852 | -5/Upper Caves | Spotted B-75 Beast 7909 | -5/Upper Caves | Destroyed B-75 Beast 7939 | -5/Upper Caves | Lost 5 parts (1p1n1u2w) 7967 | -5/Upper Caves | Learned Factory stockpile data 8140 | -5/Upper Caves | Discovered new exit (range 12) 8154 | -5/Upper Caves | Entered another Upper Caves area 8183 | -5/Upper Caves | Learned Factory stockpile data 8252 | -5/Upper Caves | Attracted the attention of an 0b10 checkpoint 8300 | -5/Upper Caves | Core integrity fell below 50% 8437 | -5/Upper Caves | Discovered new exit (range 13) 8443 | -5/Upper Caves | Entered Zhirov 8443 | -5/Zhirov | Discovered new exit (range 3) 8453 | -5/Zhirov | Build established: Mutant 8453 | -5/Zhirov | Met Zhirov 8462 | -5/Zhirov | Learned location of Quarantine (-3) 8462 | -5/Zhirov | Learned location of Testing (-2) 8462 | -5/Zhirov | Learned location of Command (-1) 8471 | -5/Zhirov | Zhirov requested help retrieving the SGEMP Prototype 8478 | -5/Zhirov | Found Alien Artifact 8478 | -5/Zhirov | Identified Integrated Reactor 8478 | -5/Zhirov | Installed Integrated Reactor, increased core energy generation (+10) 8486 | -5/Zhirov | Found Alien Artifact 8520 | -5/Zhirov | Entered Proximity Caves 8547 | -4/Proximity Caves | Attracted the attention of an 0b10 checkpoint 8551 | -4/Proximity Caves | Spotted B-86 Titan 8594 | -4/Proximity Caves | Core integrity fell below 20% 8606 | -4/Proximity Caves | Destroyed by D-63 Destroyer with Heavy Rocket Launcher Last Messages --------------- 08507_ Dropped Hcp. Storage Unit. 08515_ System corrupted: Matter fused (-6). LOCATION=UNKNOWN GOAL=ESCAPE 08546_ Slug penetrates Wall. 08547_ System corrupted: Matter fused (-7). 08547_ Y-64 Sentinel: "INTERCEPTING UNREGISTERED DERELICT." 08564_ F42,C3VU%MSZX5B>USPD 08572_ C-30 ARC bursts open, deploying its payload. 08572_ S-27 Virus unfolds itself. 08587_ K<4VIH ICP OUU